bitfinex/quotes_SOLUSD_20241001
["timestamp","ask_amount","ask_price","bid_price","bid_amount"]
[1727802931845,6.8338,146.33,146.32,15.1131]
[1727802932048,6.8338,146.33,146.31,1.36671401]
[1727802932264,34.1539,146.4,146.3,1.56666848]
[1727802932265,6.8348,146.31,146.3,1.56666848]
[1727802932566,6.8347,146.32,146.3,1.56666848]
[1727802933145,6.8347,146.32,146.3,0.2]
[1727802933644,6.8348,146.31,146.3,0.2]
[1727802934139,6.8344,146.32,146.3,0.2]
[1727802934335,6.8348,146.31,146.3,0.2]
[1727802935679,6.8344,146.32,146.3,0.2]
[1727802935965,6.8348,146.31,146.3,0.2]
[1727802936348,6.8344,146.32,146.3,0.2]
[1727802937060,6.8344,146.32,146.3,1.5667912]
[1727802937442,17.0817,146.36,146.3,1.5667912]
[1727802937443,6.8348,146.31,146.3,1.5667912]
[1727802938065,17.0817,146.36,146.3,1.5667912]
[1727802938066,6.8338,146.33,146.3,0.2]
[1727802938249,17.0784,146.39,146.31,1.36666077]
[1727802938452,6.8312,146.39,146.34,40.859784]
[1727802938654,18.232822,146.42,146.33,16.0269]
[1727802938948,1.158022,146.42,146.33,16.0269]
[1727802939159,6.8325,146.36,146.33,16.0269]
[1727802939545,6.8334,146.34,146.33,16.0269]
[1727802939851,6.8335,146.34,146.31,1.36652592]
[1727802940166,6.8335,146.34,146.3,0.2]
[1727802940364,6.8342,146.33,146.3,0.2]
[1727802940570,6.8342,146.33,146.3,1.56654216]
[1727802940751,6.8344,146.32,146.3,1.56654216]
[1727802940953,6.8339,146.33,146.3,1.56654216]
[1727802941154,6.8335,146.34,146.3,1.56654216]
[1727802941356,17.0792,146.38,146.3,1.56659983]
[1727802941357,6.8341,146.33,146.3,1.56659983]
[1727802941548,17.0792,146.38,146.3,0.2]
[1727802941761,6.8335,146.34,146.3,0.2]
[1727802941959,6.833,146.35,146.3,7.035]
[1727802942149,6.8335,146.34,146.3,7.035]
[1727802942345,17.0792,146.38,146.3,7.035]
[1727802942547,17.0792,146.38,146.31,1.36654554]
[1727802942548,6.833,146.35,146.31,1.36654554]
[1727802942791,17.0792,146.38,146.3,7.035]
[1727802942792,6.8341,146.33,146.3,0.2]
[1727802943074,6.8344,146.32,146.3,0.2]
[1727802943969,6.8339,146.33,146.3,0.2]
[1727802944147,17.084,146.34,146.3,0.2]
[1727802944347,6.8348,146.31,146.3,0.2]
[1727802945047,6.8339,146.33,146.3,0.2]
[1727802945248,17.0771,146.4,146.3,1.56664118]
[1727802945451,16.5457,146.44,146.3,1.56644119]
[1727802945657,6.8311,146.39,146.35,6.8329]
[1727802945873,6.8306,146.4,146.35,6.8329]
[1727802946373,6.1713,146.43,146.37,6.8318]
[1727802946593,6.1713,146.43,146.33,15.9299]
[1727802946594,6.8298,146.42,146.38,1.36594785]
[1727802946879,6.8298,146.42,146.38,8.19734785]
[1727802947056,6.8298,146.42,146.37,23.9112]
[1727802947457,1.1573389,146.45,146.41,6.8297]
[1727802947671,17.0663,146.49,146.41,6.8297]
[1727802947672,6.8281,146.46,146.42,1.36551298]
[1727802948086,1.15703748,146.49,146.42,23.776884]
[1727802948265,1.15703748,146.49,146.46,6.8276]
[1727802948584,6.8231,146.56,146.49,17.0658]
[1727802948883,9.2619,146.62,146.45,32.6091941]
[1727802948884,1.15637224,146.58,146.52,17.0624]
[1727802949180,1.55670265,146.57,146.56,6.8231]
[1727802950381,1.15568741,146.64,146.61,6.8206]
[1727802950562,21.69104713,146.73,146.62,1.36354717]
[1727802950765,1.15586342,146.67,146.62,6.8203]
[1727802950964,6.0874,146.74,146.63,25.14039113]
[1727802951285,6.8172,146.69,146.63,6.8194]
[1727802951776,6.8165,146.71,146.64,1.36342339]
[1727802951985,7.97075819,146.73,146.67,6.818]
[1727802952175,6.8153,146.73,146.67,6.818]
[1727802952375,17.0335,146.77,146.65,17.0469]
[1727802952376,6.8157,146.72,146.65,23.8654]
[1727802952569,6.8157,146.72,146.66,6.8184]
[1727802952881,1.15506352,146.75,146.66,6.8184]
[1727802953089,6.8162,146.71,146.65,23.8658]
[1727802953382,1.15506352,146.75,146.61,34.104]
[1727802953383,16.94641,146.74,146.62,6.8201]
[1727802953680,30.55209569,146.74,146.5,2.0]
[1727802953867,6.8236,146.55,146.49,17.065]
[1727802954069,17.0513,146.62,146.49,17.065]
[1727802954267,6.8245,146.53,146.47,6.8271]
[1727802954463,6.825,146.52,146.45,23.8977]
[1727802954657,6.825,146.52,146.45,17.0698]
[1727802954862,17.0583,146.56,146.45,17.0698]
[1727802955464,6.825,146.52,146.47,6.8273]
[1727802955780,6.8245,146.53,146.48,6.8268]
[1727802956162,6.8255,146.51,146.45,17.0698]
[1727802956360,6.8263,146.5,146.45,17.0698]
[1727802956563,6.8254,146.52,146.45,23.8978]
[1727802957189,6.8259,146.51,146.45,17.0698]
[1727802957394,6.8259,146.51,146.46,6.8277]
[1727802957886,6.8259,146.51,146.45,17.0698]
[1727802958088,20.0,146.56,146.46,6.8276]
[1727802958288,17.0568,146.57,146.48,6.8267]
[1727802958587,17.0568,146.57,146.47,1.36488025]
[1727802958588,17.0568,146.57,146.46,23.776884]
[1727802958968,6.825,146.52,146.46,30.604584]
[1727802959163,17.0568,146.57,146.45,17.0698]
[1727802959393,17.0601,146.55,146.44,15.7288]
[1727802959687,17.0601,146.55,146.44,22.5574]
[1727802959862,6.8259,146.5,146.44,22.5574]
[1727802960066,17.0601,146.55,146.44,32.8002]
[1727802960271,17.0553,146.59,146.48,6.8268]
[1727802960590,17.0553,146.59,146.5,6.8258]
[1727802960591,6.8236,146.55,146.5,6.8258]
[1727802960764,6.8236,146.55,146.51,1.36471487]
[1727802960965,6.8241,146.54,146.48,30.603284]
[1727802961371,17.0553,146.59,146.48,30.603284]
[1727802961372,6.825,146.52,146.48,23.776884]
[1727802961968,6.8244,146.54,146.48,30.603684]
[1727802962164,6.8244,146.54,146.49,6.8264]
[1727802962486,41.04446499,146.62,146.51,23.776884]
[1727802962670,23.3388,146.63,146.51,23.776884]
[1727802962671,23.3388,146.63,146.52,17.0618]
[1727802962869,6.8224,146.58,146.53,6.8244]
[1727802963071,6.8224,146.58,146.54,1.36442557]
[1727802963288,6.94175927,146.61,146.52,17.0618]
[1727802963495,17.0534,146.6,146.49,17.0659]
[1727802963798,9.43784013,146.67,146.53,23.776884]
[1727802963975,9.43784013,146.67,146.52,17.0622]
[1727802963976,6.8213,146.6,146.54,17.0591]
[1727802964176,6.93992365,146.65,146.55,6.8235]
[1727802964489,6.8208,146.61,146.56,6.8231]
[1727802964667,6.93992365,146.65,146.58,23.776884]
[1727802964875,6.8189,146.65,146.59,6.8216]
[1727802965067,6.818,146.67,146.61,6.8203]
[1727802965692,17.0392,146.72,146.6,47.649884]
[1727802965895,6.8189,146.65,146.6,17.0522]
[1727802966070,17.0425,146.7,146.6,17.0522]
[1727802966479,6.8181,146.67,146.62,6.8199]
[1727802966787,7.80366352,146.75,146.63,17.0488]
[1727802966997,44.13375124,146.74,146.6,17.0529]
[1727802967286,17.0436,146.69,146.6,17.0529]
[1727802967497,6.8189,146.65,146.6,23.8741]
[1727802967794,17.0436,146.69,146.56,15.8914]
[1727802967795,6.8204,146.62,146.58,23.776884]
[1727802967969,6.8204,146.62,146.57,23.8787]
[1727802968164,20.0,146.66,146.57,17.0565]
[1727802968365,6.8208,146.61,146.57,17.0565]
[1727802968591,6.8203,146.62,146.57,23.8791]
[1727802968789,20.0,146.66,146.51,15.5709]
[1727802968991,20.0,146.64,146.51,22.3962]
[1727802969203,20.0,146.64,146.51,15.5709]
[1727802969417,17.0545,146.59,146.49,6.8262]
[1727802969910,6.8236,146.55,146.5,6.8258]
[1727802970081,6.8231,146.56,146.51,6.8253]
[1727802970505,6.8236,146.55,146.51,6.8253]
[1727802970704,6.8236,146.55,146.5,6.8258]
[1727802971390,6.8231,146.57,146.49,17.0651]
[1727802971705,20.0,146.64,146.5,1.36445335]
[1727802971916,6.8216,146.6,146.55,6.8235]
[1727802972213,17.0509,146.62,146.51,30.601884]
[1727802972507,6.8236,146.56,146.51,6.8253]
[1727802972824,6.8231,146.56,146.51,6.825]
[1727802973101,6.8213,146.6,146.55,6.8232]
[1727802973506,1.18793402,146.63,146.55,17.0581]
[1727802973897,6.8205,146.62,146.57,6.8224]
[1727802974204,6.8184,146.67,146.58,7.4791094]
[1727802974420,6.8184,146.67,146.62,6.8203]
[1727802974588,1.18749793,146.68,146.63,1.36352903]
[1727802974788,17.0396,146.72,146.64,8.1829138]
[1727802975006,17.0423,146.7,146.59,17.054]
[1727802975189,6.8199,146.63,146.59,17.054]
[1727802975585,6.8199,146.63,146.58,12.9369]
[1727802975794,10.31504647,146.69,146.57,23.776884]
[1727802975795,6.8208,146.61,146.57,23.776884]
[1727802976014,17.0472,146.66,146.56,23.8805]
[1727802976306,6.8213,146.6,146.56,23.8805]
[1727802976508,17.0472,146.66,146.55,22.1554]
[1727802976509,20.0,146.65,146.55,22.1554]
[1727802976689,6.8223,146.58,146.55,15.3319]
[1727802976900,6.8223,146.58,146.53,23.8853]
[1727802977193,17.0518,146.62,146.5,6.2504]
[1727802977394,6.8235,146.56,146.51,6.825]
[1727802977903,17.0518,146.62,146.5,13.0759]
[1727802977904,6.8237,146.55,146.5,13.0759]
[1727802978205,6.3687,146.64,146.53,6.8243]
[1727802978206,6.8223,146.58,146.53,6.8243]
[1727802978413,20.0,146.62,146.51,17.063]
[1727802978591,6.8221,146.59,146.53,6.8241]
[1727802978790,6.3687,146.64,146.55,17.0583]
[1727802978791,23.4178,146.64,146.55,17.0583]
[1727802978986,6.8219,146.59,146.55,17.0583]
[1727802979192,23.4178,146.64,146.52,51.1865]
[1727802979520,6.8223,146.58,146.54,6.8239]
[1727802979702,6.8218,146.59,146.55,6.8235]
[1727802980014,6.8212,146.61,146.56,8.18713626]
[1727802980326,6.8212,146.61,146.56,6.8229]
[1727802980511,6.8195,146.64,146.59,6.8216]
[1727802980708,17.0455,146.67,146.58,17.0546]
[1727802980888,6.819,146.65,146.6,6.8209]
[1727802981306,6.819,146.65,146.61,1.36373574]
[1727802981514,6.819,146.65,146.6,6.8212]
[1727802982415,6.0236,146.68,146.6,6.8212]
[1727802982595,6.8195,146.64,146.6,6.8212]
[1727802983105,6.0236,146.68,146.58,17.0546]
[1727802983405,6.8204,146.62,146.57,6.8224]
[1727802983592,20.0,146.67,146.55,17.0584]
[1727802983793,6.8214,146.6,146.56,6.8231]
[1727802984019,17.0493,146.64,146.52,17.062]
[1727802984218,6.8226,146.57,146.53,6.8244]
[1727802984412,6.8226,146.57,146.52,17.062]
[1727802984413,6.8226,146.57,146.52,23.8868]
[1727802984616,6.8222,146.58,146.53,6.8243]
[1727802984915,17.0479,146.65,146.57,6.8222]
[1727802985103,17.0479,146.65,146.56,17.0571]
[1727802985304,6.8218,146.59,146.56,17.0571]
[1727802985503,20.0,146.65,146.51,23.776884]
[1727802985695,6.8227,146.57,146.53,6.8244]
[1727802985895,6.8236,146.55,146.51,23.776884]
[1727802986297,17.055,146.59,146.5,6.2504]
[1727802986501,6.8235,146.56,146.51,6.8252]
[1727802986824,6.8228,146.57,146.52,6.8245]
[1727802987017,17.0512,146.62,146.53,1.36434869]
[1727802987196,6.8226,146.58,146.53,8.18864869]
[1727802987399,6.79226,146.58,146.53,8.18864869]
[1727802987594,17.0512,146.62,146.53,8.18864869]
[1727802987843,6.8228,146.57,146.53,6.8243]
[1727802988030,6.8236,146.55,146.51,23.888]
[1727802988208,17.054,146.6,146.51,17.0627]
[1727802988405,6.8232,146.56,146.52,6.8248]
[1727802988610,6.92758791,146.64,146.51,17.0627]
[1727802988611,6.8208,146.61,146.56,6.823]
[1727802988913,6.822,146.59,146.54,6.8239]
[1727802989117,17.0495,146.64,146.53,23.776884]
[1727802989430,6.8202,146.63,146.58,6.8221]
[1727802989610,16.24626948,146.72,146.61,6.8206]
[1727802989802,6.8185,146.66,146.62,1.36356377]
[1727802990000,6.91166926,146.69,146.62,1.36356377]
[1727802990200,6.8185,146.66,146.62,6.8202]
[1727802990523,17.0419,146.7,146.6,17.0523]
[1727802990524,6.8194,146.65,146.61,23.776884]
[1727802990727,6.8183,146.67,146.63,23.776884]
[1727802991024,6.8183,146.67,146.61,23.776884]
[1727802991025,17.0419,146.7,146.61,30.597584]
[1727802991206,6.8203,146.63,146.58,6.8218]
[1727802991400,6.8194,146.64,146.58,23.776884]
[1727802991599,6.8194,146.64,146.6,23.776884]
[1727802991815,6.8211,146.61,146.57,23.8789]
[1727802992012,6.8211,146.61,146.57,17.0563]
[1727802992212,34.0859,146.69,146.56,15.2374]
[1727802992213,20.0,146.65,146.56,15.2374]
[1727802992412,6.8226,146.57,146.52,13.3899]
[1727802992633,6.8231,146.56,146.52,6.5651]
[1727802992806,6.2004,146.64,146.51,16.3448]
[1727802992807,17.0539,146.6,146.51,16.3448]
[1727802993000,6.2004,146.64,146.51,16.3448]
[1727802993510,6.823,146.57,146.52,6.8246]
[1727802993704,6.8227,146.57,146.52,6.8246]
[1727802994025,20.0,146.6,146.52,17.0617]
[1727802994230,17.0523,146.61,146.52,17.0617]
[1727802994231,6.8228,146.57,146.52,23.8866]
[1727802994525,6.8226,146.57,146.53,6.8244]
[1727802994725,6.8227,146.57,146.53,6.8244]
[1727802994932,17.0523,146.61,146.52,17.0617]
[1727802995108,20.0,146.6,146.52,17.0617]
[1727802995313,6.8245,146.53,146.51,16.3448]
[1727802995607,6.8241,146.54,146.51,16.3448]
[1727802995810,17.0574,146.57,146.51,16.3448]
[1727802996132,1.18459791,146.62,146.51,16.3448]
[1727802996328,6.8218,146.59,146.51,23.1701]
[1727802996531,26.8208,146.61,146.52,6.8248]
[1727802996833,20.0,146.61,146.54,6.8239]
[1727802997129,20.0,146.61,146.55,6.8232]
[1727802997330,20.0,146.62,146.52,23.776884]
[1727802997824,7.38461905,146.64,146.52,30.601684]
[1727802997825,6.8216,146.6,146.52,30.601684]
[1727802998010,20.0,146.63,146.51,33.4081]
[1727802998205,6.8213,146.6,146.54,6.8238]
[1727802998424,20.0,146.63,146.51,16.3448]
[1727802998628,6.8222,146.58,146.52,17.0621]
[1727802999019,6.8222,146.58,146.53,6.8244]
[1727802999225,6.8222,146.58,146.52,17.0621]
[1727802999226,20.0,146.63,146.54,17.0593]
[1727802999428,20.0,146.6,146.58,17.0548]
[1727802999811,6.8204,146.62,146.58,23.8769]
[1727803000439,6.8207,146.62,146.56,6.823]
[1727803000741,7.38461905,146.64,146.55,17.0586]
[1727803000742,6.821,146.61,146.55,17.0586]
[1727803000943,20.0,146.63,146.57,6.8225]
[1727803001127,6.8208,146.61,146.56,6.823]
[1727803001532,6.8208,146.61,146.57,6.8226]
[1727803001844,20.0,146.63,146.58,6.8218]
[1727803001845,6.82,146.63,146.58,6.8218]
[1727803002019,6.8203,146.62,146.58,6.8218]
[1727803002344,14.29880178,146.64,146.56,6.823]
[1727803002546,6.8213,146.6,146.56,6.823]
[1727803002752,6.8226,146.58,146.54,17.0596]
[1727803002957,6.8228,146.57,146.51,33.4082]
[1727803003152,17.0518,146.62,146.51,16.3448]
[1727803003445,20.0,146.61,146.48,40.2834]
[1727803003619,14.29880178,146.64,146.6,6.8212]
[1727803003823,14.29880178,146.64,146.61,6.8207]
[1727803004121,16.1489,146.68,146.62,6.8203]
[1727803004122,6.818,146.67,146.62,6.8203]
[1727803004319,6.567,146.68,146.63,6.8198]
[1727803004550,6.8175,146.69,146.57,6.2921]
[1727803004551,8.09839133,146.7,146.68,6.8174]
[1727803004841,22.4483,146.72,146.68,6.8174]
[1727803004842,19.5815332,146.75,146.7,6.8163]
[1727803005017,6.8161,146.72,146.66,6.8181]
[1727803005214,6.91256881,146.75,146.64,17.0476]
[1727803005438,6.91256881,146.75,146.66,6.8184]
[1727803005643,6.91256881,146.75,146.67,17.045]
[1727803005832,6.91256881,146.75,146.73,23.8526]
[1727803006021,6.567,146.77,146.73,17.0376]
[1727803006221,6.567,146.77,146.68,17.043]
[1727803006639,6.567,146.77,146.69,23.776884]
[1727803006941,6.567,146.77,146.72,6.8156]
[1727803007145,6.567,146.77,146.67,17.0447]
[1727803007332,6.567,146.77,146.68,23.776884]
[1727803007646,13.3807,146.77,146.67,17.0447]
[1727803007826,0.846113,146.8,146.73,6.8151]
[1727803008028,6.8125,146.79,146.72,6.8153]
[1727803008239,6.813,146.78,146.7,23.8569]
[1727803008426,6.8134,146.77,146.7,17.0407]
[1727803008621,6.8128,146.79,146.7,17.0407]
[1727803008828,0.846113,146.8,146.7,17.0407]
[1727803009031,0.846113,146.8,146.68,6.8171]
[1727803009250,6.8132,146.78,146.7,6.8163]
[1727803009551,6.8134,146.77,146.71,6.8159]
[1727803009732,20.0,146.77,146.69,17.042]
[1727803009937,6.8138,146.76,146.7,6.8163]
[1727803010242,26.8136,146.77,146.7,6.8164]
[1727803010451,61.12825414,146.8,146.7,6.8164]
[1727803010752,6.8143,146.75,146.69,17.042]
[1727803010953,6.8153,146.73,146.67,6.8177]
[1727803011130,6.8148,146.74,146.68,6.8174]
[1727803011327,35.82849459,146.78,146.68,17.043]
[1727803011542,27.658313,146.8,146.74,6.8147]
[1727803011749,20.846113,146.8,146.71,17.0398]
[1727803012130,6.8124,146.79,146.73,6.8151]
[1727803012346,6.8129,146.78,146.73,6.8151]
[1727803012651,6.8143,146.75,146.7,6.8166]
[1727803013157,0.846113,146.8,146.7,6.8166]
[1727803013158,6.8137,146.77,146.7,6.8166]
[1727803013334,6.8132,146.78,146.7,17.041]
[1727803013531,36.67460759,146.8,146.7,17.041]
[1727803013754,6.8133,146.77,146.7,17.041]
[1727803013959,36.67460759,146.8,146.75,6.8142]
[1727803014156,20.846113,146.8,146.75,6.8142]
[1727803014344,20.846113,146.8,146.69,34.0839]
[1727803014345,0.846113,146.8,146.79,6.8124]
[1727803014545,0.846113,146.8,146.76,17.0335]
[1727803015063,0.846113,146.8,146.77,1.36220106]
[1727803015234,0.846113,146.8,146.76,17.0335]
[1727803015432,0.846113,146.8,146.79,6.8124]
[1727803016038,0.846113,146.8,146.77,6.8132]
[1727803016247,0.846113,146.8,146.78,6.8127]
[1727803016450,0.846113,146.8,146.79,6.8124]
[1727803016633,0.846113,146.8,146.76,17.0335]
[1727803016833,0.846113,146.8,146.72,39.3447]
[1727803017047,0.846113,146.8,146.76,6.8137]
[1727803017243,7.658113,146.8,146.74,17.0358]
[1727803017452,0.846113,146.8,146.74,17.0358]
[1727803017873,6.8126,146.79,146.74,17.0358]
[1727803018031,0.846113,146.8,146.74,17.0358]
[1727803018234,0.846113,146.8,146.72,15.704]
[1727803018437,6.814,146.76,146.71,6.8161]
[1727803018751,6.814,146.76,146.7,23.8571]
[1727803018951,17.876113,146.8,146.7,23.8571]
[1727803019140,6.8144,146.75,146.7,17.0406]
[1727803019333,6.8138,146.77,146.7,17.0406]
[1727803019564,6.8138,146.77,146.72,6.8156]
[1727803019852,6.8157,146.72,146.67,15.1526]
[1727803020033,6.6649,146.79,146.7,6.8165]
[1727803020034,6.8147,146.75,146.7,6.8165]
[1727803020239,6.8138,146.76,146.71,1.36285496]
[1727803020550,6.6649,146.79,146.73,6.8152]
[1727803020749,0.846113,146.8,146.74,1.36267075]
[1727803020955,0.846113,146.8,146.77,23.8467]
[1727803021152,0.846113,146.8,146.77,17.0334]
[1727803021343,0.846113,146.8,146.7,52.96937979]
[1727803021344,7.658513,146.8,146.73,17.037]
[1727803021860,0.846113,146.8,146.67,68.12197979]
[1727803022062,6.8128,146.79,146.74,6.8146]
[1727803022250,6.8134,146.77,146.72,23.8546]
[1727803022453,6.8134,146.77,146.72,17.039]
[1727803022840,0.846113,146.8,146.68,34.0857]
[1727803023040,0.846113,146.8,146.69,1.362805]
[1727803023242,6.8133,146.78,146.73,6.8152]
[1727803023561,6.8133,146.78,146.68,17.0438]
[1727803023562,6.8156,146.73,146.68,17.0438]
[1727803023738,6.8147,146.75,146.68,17.0438]
[1727803024068,6.8166,146.7,146.69,1.55819366]
[1727803024263,12.8431,146.7,146.69,1.55819366]
[1727803024462,32.8431,146.7,146.69,1.55819366]
[1727803025065,26.0265,146.7,146.69,1.55819366]
[1727803025238,6.0265,146.7,146.69,1.55819366]
[1727803025743,20.0,146.73,146.69,1.55819366]
[1727803025938,13.3657,146.74,146.69,8.37519366]
[1727803026264,13.3657,146.74,146.69,1.55819366]
[1727803026265,6.8153,146.73,146.69,1.55819366]
[1727803026449,6.8157,146.72,146.69,1.55819366]
[1727803026644,6.5509,146.74,146.69,1.55819366]
[1727803027369,20.0,146.73,146.69,1.55819366]
[1727803027545,6.5509,146.74,146.69,8.37479366]
[1727803027751,6.8166,146.7,146.69,1.55819366]
[1727803028164,26.8166,146.7,146.69,1.55819366]
[1727803028374,50.593484,146.7,146.69,1.55819366]
[1727803028541,50.593484,146.7,146.6,17.0531]
[1727803028542,43.776884,146.7,146.6,23.8739]
[1727803028860,20.0,146.69,146.63,6.8198]
[1727803029060,20.0,146.7,146.63,17.0494]
[1727803029267,20.0,146.7,146.57,15.8925]
[1727803029268,6.8189,146.65,146.6,23.8742]
[1727803030061,6.1568,146.66,146.57,15.8925]
[1727803030373,20.0,146.65,146.61,6.8204]
[1727803030562,12.9753,146.66,146.62,1.36398633]
[1727803030764,6.8181,146.67,146.62,23.8701]
[1727803031166,20.0,146.68,146.64,17.0477]
[1727803031390,6.4398,146.7,146.65,1.36351014]
[1727803031550,6.4398,146.7,146.67,6.8179]
[1727803031751,6.3709,146.74,146.67,1.36330933]
[1727803031990,6.8162,146.71,146.64,23.776884]
[1727803032163,6.3709,146.74,146.65,17.047]
[1727803032345,6.8162,146.71,146.65,17.047]
[1727803032556,6.3709,146.74,146.62,17.0506]
[1727803032772,6.8176,146.68,146.63,6.8194]
[1727803032959,6.8167,146.7,146.65,6.8189]
[1727803033166,2.0,146.7,146.6,23.776884]
[1727803033360,2.0,146.7,146.69,6.817]
[1727803033682,2.0,146.7,146.63,34.0989]
[1727803033865,2.0,146.7,146.63,51.1484]
[1727803034051,2.0,146.7,146.63,17.0495]
[1727803034256,6.819,146.65,146.6,6.8208]
[1727803034582,23.1112,146.69,146.58,6.2706]
[1727803034583,6.818,146.67,146.62,6.8202]
[1727803034884,6.8185,146.66,146.61,23.8717]
[1727803035056,20.0,146.68,146.58,17.0551]
[1727803035261,6.8202,146.63,146.58,23.8772]
[1727803035589,6.8213,146.6,146.56,6.8227]
[1727803035769,6.8207,146.62,146.56,6.8227]
[1727803035973,37.0469,146.66,146.55,17.0587]
[1727803035974,37.0469,146.66,146.57,1.36423893]
[1727803036173,23.776884,146.67,146.5,17.0641]
[1727803036174,20.0,146.61,146.5,17.0641]
[1727803036486,6.0365,146.6,146.5,17.0641]
[1727803036669,20.0,146.59,146.52,17.0614]
[1727803037091,6.8223,146.58,146.52,23.8863]
[1727803037286,20.0,146.59,146.5,1.56021452]
[1727803037287,6.8232,146.56,146.51,6.8252]
[1727803038184,23.776884,146.58,146.48,17.0661]
[1727803038385,6.825,146.52,146.47,6.8273]
[1727803038559,6.825,146.52,146.44,17.071]
[1727803038758,6.8245,146.53,146.48,6.8268]
[1727803039195,6.8245,146.53,146.47,23.8955]
[1727803039483,6.8238,146.55,146.49,6.8263]
[1727803039668,20.0,146.59,146.46,52.96937979]
[1727803039986,12.8578,146.6,146.54,6.8239]
[1727803040479,6.91265345,146.63,146.58,6.8221]
[1727803040690,6.91265345,146.63,146.58,8.18630787]
[1727803040691,6.82,146.63,146.58,8.18630787]
[1727803040993,7.38120183,146.65,146.52,23.8872]
[1727803041215,7.38120183,146.65,146.58,6.8221]
[1727803041216,6.8198,146.64,146.58,6.8221]
[1727803041369,7.38120183,146.65,146.55,17.0587]
[1727803041694,6.8217,146.6,146.55,17.0587]
[1727803042180,6.8217,146.6,146.56,1.36436004]
[1727803042381,20.0,146.64,146.55,17.0587]
[1727803042776,20.0,146.64,146.53,6.8243]
[1727803042969,6.8217,146.59,146.54,6.824]
[1727803043170,20.0,146.57,146.51,17.0627]
[1727803043476,6.8232,146.56,146.51,23.888]
[1727803043691,20.0,146.58,146.52,1.36467805]
[1727803043992,6.8235,146.56,146.51,23.8877]
[1727803044193,20.0,146.64,146.48,52.96937979]
[1727803044502,14.20050183,146.65,146.59,6.8216]
[1727803044673,14.20050183,146.65,146.6,8.18514618]
[1727803044866,21.9592,146.64,146.49,1.56032103]
[1727803045070,21.9592,146.64,146.44,34.1421]
[1727803045071,6.829,146.61,146.44,34.1421]
[1727803045271,6.829,146.61,146.46,6.8275]
[1727803045272,6.8255,146.51,146.46,6.8275]
[1727803045475,17.0577,146.57,146.45,6.8281]
[1727803045770,17.0577,146.57,146.43,17.072]
[1727803045771,6.8236,146.55,146.5,6.8259]
[1727803045983,8.21758939,146.6,146.48,17.0662]
[1727803046184,6.8254,146.52,146.46,6.8273]
[1727803046503,6.8275,146.47,146.41,23.9042]
[1727803046796,6.8296,146.42,146.38,17.0785]
[1727803047001,17.0684,146.47,146.38,17.0785]
[1727803047002,20.0,146.46,146.38,17.0785]
[1727803047173,6.8287,146.44,146.39,6.831]
[1727803047371,20.0,146.46,146.39,6.831]
[1727803047604,34.1243,146.53,146.34,17.0823]
[1727803047605,6.8302,146.41,146.34,17.0823]
[1727803047920,6.8311,146.39,146.34,23.9155]
[1727803048069,6.8324,146.36,146.3,24.123]
[1727803048378,34.1435,146.45,146.3,24.123]
[1727803048379,6.8323,146.37,146.3,17.2878]
[1727803048586,6.832,146.37,146.3,17.2878]
[1727803048782,17.0743,146.42,146.3,17.2878]
[1727803048989,20.0,146.4,146.33,17.0837]
[1727803049296,15.9595,146.43,146.3,0.2]
[1727803049597,15.9595,146.43,146.32,17.0849]
[1727803049791,20.0,146.38,146.32,23.9191]
[1727803049976,20.0,146.38,146.33,6.8337]